fUST/lending_fUST_20250408
["ID","MTS","AMOUNT","RATE_DAILY","PERIOD"]
[357502400,1744092645676,-1511.11,0.00022247,2]
[357502401,1744092645686,-500.0,0.00022247,2]
[357502402,1744092645695,-500.0,0.00022247,2]
[357502403,1744092645705,-500.0,0.00022247,2]
[357502404,1744092645715,-500.0,0.00022247,2]
[357502405,1744092645724,-401.51364586,0.00022247,2]
[357502407,1744092645734,-500.0,0.00022247,2]
[357502409,1744092645743,-500.0,0.00022247,2]
[357502411,1744092645753,-500.0,0.00022247,2]
[357502413,1744092645764,-379.58382183,0.0002233,2]
[357502414,1744092645774,-500.0,0.00022345,2]
[357502416,1744092645784,-740.4,0.00022346,2]
[357502418,1744092645794,-500.0,0.00022346,2]
[357502420,1744092645804,-500.0,0.000225,2]
[357502421,1744092645813,-4501.74081005,0.000225,4]
[357502422,1744092645823,-1056.16,0.00022519,2]
[357502423,1744092645832,-500.0,0.00022519,2]
[357502424,1744092645842,-500.0,0.0002252,2]
[357502426,1744092645852,-1113.32,0.0002252,2]
[357502427,1744092645863,-500.0,0.0002252,2]
[357502428,1744092645873,-500.0,0.0002252,2]
[357502429,1744092645883,-500.0,0.0002252,2]
[357502430,1744092645893,-530.02,0.0002252,2]
[357502431,1744092645903,-500.0,0.0002252,2]
[357502432,1744092645913,-500.0,0.0002252,2]
[357502433,1744092645923,-500.0,0.0002252,2]
[357502434,1744092645933,-500.0,0.0002252,2]
[357502435,1744092645942,-500.0,0.0002252,2]
[357502436,1744092645952,-235.69349248,0.00022521,2]
[357502437,1744092645962,-500.0,0.00022521,2]
[357502438,1744092645972,-500.0,0.00022521,2]
[357502439,1744092645982,-635.17,0.00022521,2]
[357502440,1744092645992,-500.0,0.00022521,2]
[357502441,1744092646002,-1511.11,0.00022521,2]
[357502443,1744092646013,-500.0,0.00022521,2]
[357502445,1744092646023,-500.0,0.00022521,2]
[357502447,1744092646032,-500.0,0.00022521,2]
[357502448,1744092646042,-500.0,0.00022521,2]
[357502449,1744092646052,-500.0,0.00022521,2]
[357502450,1744092646062,-500.0,0.00022521,2]
[357502451,1744092646073,-500.0,0.00022521,2]
[357502452,1744092646083,-500.0,0.00022619,2]
[357502453,1744092646092,-740.4,0.0002262,2]
[357502454,1744092646102,-500.0,0.0002262,2]
[357502455,1744092646112,-1056.16,0.00022793,2]
[357502456,1744092646122,-500.0,0.00022793,2]
[357502457,1744092646131,-500.0,0.00022794,2]
[357502458,1744092646141,-1113.32,0.00022794,2]
[357502459,1744092646151,-500.0,0.00022794,2]
[357502461,1744092646161,-500.0,0.00022794,2]
[357502463,1744092646171,-187.24530466,0.00022794,2]
[357502464,1744092646180,-530.02,0.00022794,2]
[357502465,1744092646190,-500.0,0.00022794,2]
[357502466,1744092646200,-500.0,0.00022794,2]
[357502467,1744092646210,-500.0,0.00022794,2]
[357502469,1744092646220,-500.0,0.00022794,2]
[357502470,1744092646230,-500.0,0.00022794,2]
[357502471,1744092646240,-500.0,0.00022795,2]
[357502472,1744092646250,-500.0,0.00022795,2]
[357502473,1744092646260,-635.17,0.00022795,2]
[357502474,1744092646269,-500.0,0.00022795,2]
[357502475,1744092646279,-1511.11,0.00022795,2]
[357502477,1744092646289,-500.0,0.00022795,2]
[357502478,1744092646298,-500.0,0.00022795,2]
[357502479,1744092646308,-500.0,0.00022795,2]
[357502480,1744092646318,-500.0,0.00022795,2]
[357502481,1744092646328,-500.0,0.00022795,2]
[357502482,1744092646338,-500.0,0.00022795,2]
[357502484,1744092646348,-500.0,0.00022795,2]
[357502485,1744092646358,-500.0,0.00022893,2]
[357502486,1744092646368,-740.4,0.00022894,2]
[357502487,1744092646378,-500.0,0.00022894,2]
[357502488,1744092646388,-202.89924348,0.00023,2]
[357502489,1744092646398,-1056.16,0.00023067,2]
[357502491,1744092646408,-508.64750766,0.00023067,2]
[357502492,1744092646417,-500.0,0.00023068,2]
[357502493,1744092646427,-1113.32,0.00023068,2]
[357502494,1744092646437,-500.0,0.00023068,2]
[357502495,1744092646447,-500.0,0.00023068,2]
[357502496,1744092646457,-530.02,0.00023068,2]
[357502497,1744092646468,-500.0,0.00023068,2]
[357502498,1744092646479,-500.0,0.00023068,2]
[357502499,1744092646495,-500.0,0.00023068,2]
[357502500,1744092646540,-500.0,0.00023068,2]
[357502501,1744092646550,-500.0,0.00023068,2]
[357502502,1744092646560,-619.8769753,0.00023069,2]
[357502503,1744092646572,-500.0,0.00023069,2]
[357502504,1744092646581,-635.17,0.00023069,2]
[357502505,1744092646590,-500.0,0.00023069,2]
[357502506,1744092646600,-1511.11,0.00023069,2]
[357502507,1744092646609,-500.0,0.00023069,2]
[357502508,1744092646619,-500.0,0.00023069,2]
[357502509,1744092646628,-500.0,0.00023069,2]
[357502510,1744092646638,-500.0,0.00023069,2]
[357502511,1744092646647,-500.0,0.00023069,2]
[357502512,1744092646658,-500.0,0.00023069,2]
[357502513,1744092646667,-500.0,0.00023069,2]
[357502514,1744092646677,-500.0,0.00023167,2]
[357502515,1744092646687,-740.4,0.00023168,2]
[357502516,1744092646696,-500.0,0.00023168,2]
[357502517,1744092646705,-3000.0,0.000232,2]
[357502518,1744092646715,-3000.0,0.0002321,2]
[357502519,1744092646725,-3000.0,0.0002322,2]
[357502520,1744092646734,-3000.0,0.0002323,2]
[357502521,1744092646743,-3000.0,0.0002324,2]
[357502522,1744092646753,-3000.0,0.0002325,2]
[357502523,1744092646764,-3000.0,0.0002326,2]
[357502524,1744092646773,-3000.0,0.0002327,2]
[357502525,1744092646782,-3000.0,0.0002328,2]
[357502526,1744092646792,-200.0,0.00023287,2]
[357502527,1744092646801,-925.0,0.00023288,10]
[357502528,1744092646810,-3000.0,0.0002329,2]
[357502529,1744092646820,-3000.0,0.000233,2]
[357502530,1744092646829,-3000.0,0.0002331,2]
[357502531,1744092646838,-3000.0,0.0002332,2]
[357502532,1744092646847,-3000.0,0.0002333,2]
[357502533,1744092646856,-3000.0,0.0002334,2]
[357502534,1744092646866,-1056.16,0.00023341,2]
[357502535,1744092646875,-500.0,0.00023342,2]
[357502536,1744092646885,-1113.32,0.00023342,2]
[357502537,1744092646894,-500.0,0.00023342,2]
[357502538,1744092646903,-500.0,0.00023342,2]
[357502539,1744092646913,-530.02,0.00023342,2]
[357502540,1744092646923,-500.0,0.00023342,2]
[357502541,1744092646933,-500.0,0.00023342,2]
[357502542,1744092646943,-500.0,0.00023342,2]
[357502543,1744092646952,-500.0,0.00023342,2]
[357502544,1744092646961,-500.0,0.00023342,2]
[357502545,1744092646970,-500.0,0.00023343,2]
[357502546,1744092646979,-635.17,0.00023343,2]
[357502547,1744092646988,-500.0,0.00023343,2]
[357502548,1744092646997,-1511.11,0.00023343,2]
[357502549,1744092647007,-218.44,0.00023343,2]
[357502550,1744092647016,-500.0,0.00023343,2]
[357502551,1744092647025,-500.0,0.00023343,2]
[357502552,1744092647034,-500.0,0.00023343,2]
[357502553,1744092647044,-500.0,0.00023343,2]
[357502554,1744092647054,-500.0,0.00023343,2]
[357502555,1744092647064,-500.0,0.00023343,2]
[357502556,1744092647074,-4367.7928,0.0002335,2]
[357502557,1744092647083,-500.0,0.00023441,2]
[357502558,1744092647093,-740.4,0.00023442,2]
[357502559,1744092647102,-500.0,0.00023442,2]
[357502560,1744092647111,-587.0,0.00023462,2]
[357502561,1744092647121,-379.58382183,0.00023608,2]
[357502562,1744092647130,-1056.16,0.00023615,2]
[357502563,1744092647140,-500.0,0.00023616,2]
[357502564,1744092647149,-1113.32,0.00023616,2]
[357502565,1744092647159,-500.0,0.00023616,2]
[357502566,1744092647169,-500.0,0.00023616,2]
[357502567,1744092647179,-530.02,0.00023616,2]
[357502568,1744092647189,-500.0,0.00023616,2]
[357502569,1744092647199,-500.0,0.00023616,2]
[357502570,1744092647209,-500.0,0.00023616,2]
[357502571,1744092647219,-500.0,0.00023616,2]
[357502572,1744092647228,-500.0,0.00023616,2]
[357502573,1744092647238,-514.5299122,0.00023617,2]
[357502574,1744092647248,-635.17,0.00023617,2]
[357502575,1744092647258,-500.0,0.00023617,2]
[357502576,1744092647268,-1511.11,0.00023617,2]
[357502577,1744092647277,-500.0,0.00023617,2]
[357502578,1744092647287,-500.0,0.00023617,2]
[357502579,1744092647296,-500.0,0.00023617,2]
[357502580,1744092647306,-500.0,0.00023617,2]
[357502581,1744092647316,-500.0,0.00023617,2]
[357502582,1744092647326,-500.0,0.00023617,2]
[357502583,1744092647335,-500.0,0.00023715,2]
[357502584,1744092647345,-740.4,0.00023716,2]
[357502585,1744092647354,-500.0,0.00023716,2]
[357502586,1744092647364,-1056.16,0.00023889,2]
[357502587,1744092647374,-500.0,0.0002389,2]
[357502588,1744092647384,-1113.32,0.0002389,2]
[357502589,1744092647396,-500.0,0.0002389,2]
[357502590,1744092647405,-500.0,0.0002389,2]
[357502591,1744092647415,-530.02,0.0002389,2]
[357502592,1744092647425,-500.0,0.0002389,2]
[357502593,1744092647435,-575.58483493,0.0002389,2]
[357502594,1744092647445,-500.0,0.0002389,2]
[357502595,1744092647455,-500.0,0.0002389,2]
[357502596,1744092647465,-500.0,0.0002389,2]
[357502597,1744092647475,-635.17,0.00023891,2]
[357502598,1744092647486,-500.0,0.00023891,2]
[357502599,1744092647496,-1511.11,0.00023891,2]
[357502600,1744092647509,-500.0,0.00023891,2]
[357502601,1744092647518,-500.0,0.00023891,2]
[357502602,1744092647528,-500.0,0.00023891,2]
[357502603,1744092647539,-540.21,0.00023891,2]
[357502604,1744092647548,-500.0,0.00023891,2]
[357502605,1744092647557,-500.0,0.00023891,2]
[357502606,1744092647567,-500.0,0.00023989,2]
[357502607,1744092647578,-740.4,0.0002399,2]
[357502608,1744092647587,-500.0,0.0002399,2]
[357502609,1744092647598,-500.0,0.00024077,2]
[357502610,1744092647607,-1056.16,0.00024163,2]
[357502611,1744092647617,-500.0,0.00024164,2]
[357502612,1744092647626,-1113.32,0.00024164,2]
[357502613,1744092647636,-621.15,0.00024164,2]
[357502614,1744092647645,-500.0,0.00024164,2]
[357502615,1744092647655,-530.02,0.00024164,2]
[357502616,1744092647665,-500.0,0.00024164,2]
[357502617,1744092647674,-500.0,0.00024164,2]
[357502618,1744092647684,-334.80022694,0.00024164,2]
[357502619,1744092647693,-500.0,0.00024164,2]
[357502620,1744092647703,-635.17,0.00024165,2]
[357502621,1744092647713,-500.0,0.00024165,2]
[357502622,1744092647723,-1511.11,0.00024165,2]
[357502623,1744092647733,-500.0,0.00024165,2]
[357502624,1744092647742,-500.0,0.00024165,2]
[357502625,1744092647752,-500.0,0.00024165,2]
[357502626,1744092647762,-500.0,0.00024165,2]
[357502627,1744092647772,-500.0,0.00024165,2]
[357502628,1744092647781,-500.0,0.00024263,2]
[357502629,1744092647791,-740.4,0.00024264,2]
[357502630,1744092647801,-500.0,0.00024264,2]
[357502631,1744092647811,-1056.16,0.00024437,2]
[357502632,1744092647821,-500.0,0.00024438,2]
[357502633,1744092647832,-1113.32,0.00024438,2]
[357502634,1744092647842,-500.0,0.00024438,2]
[357502635,1744092647852,-530.02,0.00024438,2]
[357502636,1744092647862,-500.0,0.00024438,2]
[357502637,1744092647872,-500.0,0.00024438,2]
[357502638,1744092647882,-500.0,0.00024438,2]
[357502639,1744092647892,-635.17,0.00024439,2]
[357502640,1744092647902,-500.0,0.00024439,2]
[357502641,1744092647912,-1511.11,0.00024439,2]
[357502642,1744092647921,-500.0,0.00024439,2]
[357502643,1744092647931,-505.43161778,0.00024439,2]
[357502644,1744092647941,-500.0,0.00024439,2]
[357502645,1744092647951,-500.0,0.00024439,2]
[357502646,1744092647961,-500.0,0.00024439,2]
[357502647,1744092647970,-500.0,0.00024537,2]
[357502648,1744092647980,-740.4,0.00024538,2]
[357502649,1744092647990,-500.0,0.00024538,2]
[357502650,1744092647999,-200.0,0.00024657,2]
[357502651,1744092648010,-500.0,0.00024657,10]
[357502652,1744092648020,-500.0,0.00024657,10]
[357502653,1744092648030,-269.76998995,0.00024657,10]
[357502654,1744092648040,-500.0,0.00024657,2]
[357502655,1744092648050,-500.0,0.00024657,2]
[357502656,1744092648060,-500.0,0.00024657,2]
[357502657,1744092648070,-500.0,0.00024657,2]
[357502658,1744092648080,-503.29519876,0.00024657,2]
[357502659,1744092648090,-159.76477025,0.00024657,2]
[357502660,1744092648101,-500.0,0.00024658,2]
[357502661,1744092648110,-500.0,0.00024658,2]
[357502662,1744092648120,-500.0,0.00024658,2]
[357502663,1744092648130,-300.00000001,0.00024658,2]
[357502664,1744092648140,-1056.16,0.00024711,2]
[357502665,1744092648150,-327.3814664,0.00024712,2]
[357502666,1744092648161,-1113.32,0.00024712,2]
[357502667,1744092648170,-193.31379216,0.00024712,2]
[357502668,1744092648180,-530.02,0.00024712,2]
[357502669,1744092648191,-500.0,0.00024712,2]
[357502670,1744092648201,-500.0,0.00024712,2]
[357502671,1744092648212,-500.0,0.00024712,2]
[357502672,1744092648222,-635.17,0.00024713,2]
[357502673,1744092648232,-500.0,0.00024713,2]
[357502674,1744092648243,-1511.11,0.00024713,2]
[357502675,1744092648253,-500.0,0.00024713,2]
[357502676,1744092648264,-272.4822622,0.00024713,2]
[357502677,1744092648274,-500.0,0.00024713,2]
[357502678,1744092648285,-500.0,0.00024713,2]
[357502679,1744092648294,-500.0,0.00024811,2]
[357502680,1744092648304,-740.4,0.00024812,2]
[357502681,1744092648314,-475.48,0.00024812,2]
[357502682,1744092648324,-646.62366534,0.00024873,2]
[357502683,1744092648334,-501.4554662,0.00024873,2]
[357502684,1744092648345,-500.0,0.00024873,2]
[357502685,1744092648356,-500.0,0.00024873,2]
[357502686,1744092648365,-500.87750444,0.00024873,2]
[357502687,1744092648376,-501.97825502,0.00024873,2]
[357502688,1744092648386,-502.5418433,0.00024873,2]
[357502689,1744092648396,-501.04185555,0.00024873,2]
[357502690,1744092648406,-593.05159071,0.00024873,2]
[357502691,1744092648417,-501.25735635,0.00024873,2]
[357502692,1744092648427,-500.55098933,0.00024873,2]
[357502693,1744092648437,-502.22652041,0.00024873,2]
[357502694,1744092648447,-500.0,0.00024873,2]
[357502695,1744092648457,-501.49778525,0.00024873,2]
[357502696,1744092648467,-501.06796866,0.00024873,2]
[357502697,1744092648476,-301.64419783,0.00024873,2]
[357502698,1744092648489,-165.09083967,0.00024873,2]
[357502699,1744092648500,-435.50982937,0.00024873,2]
[357502700,1744092648510,-608.3465431,0.00024873,2]
[357502701,1744092648520,-500.63505816,0.00024873,2]
[357502702,1744092648531,-183.69513266,0.00024873,2]
[357502703,1744092648540,-500.0,0.00024873,2]
[357502704,1744092648550,-500.0,0.00024873,2]
[357502705,1744092648560,-500.0,0.00024873,2]
[357502706,1744092648570,-500.0,0.00024873,2]
[357502707,1744092648580,-502.07304544,0.00024873,2]
[357502708,1744092648590,-501.02983718,0.00024873,2]
[357502709,1744092648600,-510.33701651,0.00024873,2]
[357502710,1744092648610,-500.0,0.00024873,2]
[357502711,1744092648620,-500.44014391,0.00024873,2]
[357502712,1744092648629,-500.0,0.00024873,2]
[357502713,1744092648639,-615.16376688,0.00024873,2]
[357502714,1744092648649,-500.0,0.00024873,2]
[357502715,1744092648659,-501.28287713,0.00024873,2]
[357502716,1744092648670,-500.96418781,0.00024873,2]
[357502717,1744092648680,-500.0,0.00024873,2]
[357502718,1744092648690,-615.28107241,0.00024873,2]
[357502719,1744092648700,-501.32097158,0.00024873,2]
[357502720,1744092648710,-300.36949938,0.00024873,2]
[357502721,1744092648720,-500.0,0.00024873,2]
[357502722,1744092648730,-500.58205629,0.00024873,2]
[357502723,1744092648740,-552.26994576,0.00024873,2]
[357502724,1744092648750,-379.58382183,0.00024886,2]
[357502725,1744092648760,-424748.29254,0.000249,2]
[357502726,1744092648770,-1056.16,0.00024985,2]
[357502727,1744092648780,-1113.32,0.00024986,2]
[357502728,1744092648790,-530.02,0.00024986,2]
[357502729,1744092648800,-500.0,0.00024986,2]
[357502730,1744092648810,-500.0,0.00024986,2]
[357502731,1744092648821,-500.0,0.00024986,2]
[357502732,1744092648830,-635.17,0.00024987,2]
[357502733,1744092648841,-500.0,0.00024987,2]
[357502734,1744092648851,-1511.11,0.00024987,2]
[357502735,1744092648862,-500.0,0.00024987,2]
[357502736,1744092648872,-549.22681117,0.00024987,2]
[357502737,1744092648882,-500.0,0.00024987,2]
[357502738,1744092648892,-500.0,0.00025085,2]
[357502739,1744092648902,-740.4,0.00025086,2]
[357502740,1744092648912,-1000.0,0.00025252,2]
[357502741,1744092648922,-1000.0,0.00025252,2]
[357502742,1744092648932,-1000.0,0.00025252,2]
[357502743,1744092648943,-1002.99094632,0.00025252,2]
[357502744,1744092648953,-1000.0,0.00025252,2]
[357502745,1744092648963,-1000.0,0.00025252,2]
[357502746,1744092648973,-1056.16,0.00025259,2]
[357502747,1744092648983,-1113.32,0.0002526,2]
[357502748,1744092648993,-530.02,0.0002526,2]
[357502749,1744092649003,-500.0,0.0002526,2]
[357502750,1744092649014,-500.0,0.0002526,2]
[357502751,1744092649024,-500.0,0.0002526,2]
[357502752,1744092649035,-635.17,0.00025261,2]
[357502753,1744092649045,-500.0,0.00025261,2]
[357502754,1744092649056,-1511.11,0.00025261,2]
[357502755,1744092649066,-481.44101796,0.00025261,2]
[357502756,1744092649076,-500.0,0.00025261,2]
[357502757,1744092649086,-224.84517403,0.00025352,2]
[357502758,1744092649096,-1000.0,0.00025352,2]
[357502759,1744092649107,-1000.0,0.00025352,2]
[357502760,1744092649118,-1000.0,0.00025352,2]
[357502761,1744092649129,-1000.0,0.00025352,2]
[357502762,1744092649139,-1000.0,0.00025352,2]
[357502763,1744092649149,-1000.0,0.00025352,2]
[357502764,1744092649159,-1000.0,0.00025352,2]
[357502765,1744092649169,-528.97541901,0.00025352,2]
[357502766,1744092649179,-500.0,0.00025359,2]
[357502767,1744092649190,-740.4,0.0002536,2]
[357502768,1744092649200,-1056.16,0.00025533,2]
[357502769,1744092649210,-1113.32,0.00025534,2]
[357502770,1744092649221,-530.02,0.00025534,2]
[357502771,1744092649230,-500.0,0.00025534,2]
[357502772,1744092649241,-420.74341275,0.00025534,2]
[357502773,1744092649251,-500.0,0.00025534,2]
[357502774,1744092649261,-635.17,0.00025535,2]
[357502775,1744092649272,-478.38897893,0.00025535,2]
[357502776,1744092649283,-1511.11,0.00025535,2]
[357502777,1744092649293,-468.68213829,0.00025535,2]
[357502778,1744092649303,-339.45,0.00025633,2]
[357502779,1744092649313,-740.4,0.00025634,2]
[357502780,1744092649323,-1056.16,0.00025807,2]
[357502781,1744092649333,-1113.32,0.00025808,2]
[357502782,1744092649343,-530.02,0.00025808,2]
[357502783,1744092649353,-458.74433331,0.00025808,2]
[357502784,1744092649363,-500.0,0.00025808,2]
[357502785,1744092649373,-635.17,0.00025809,2]
[357502786,1744092649383,-1511.11,0.00025809,2]
[357502787,1744092649393,-740.4,0.00025908,2]
[357502788,1744092649403,-1000.0,0.00025909,2]
[357502789,1744092649412,-465.15559363,0.00025987,2]
[357502790,1744092649422,-200.0,0.00026027,2]
[357502791,1744092649432,-1056.29271279,0.00026081,2]
[357502792,1744092649443,-1113.36846129,0.00026082,2]
[357502793,1744092649453,-530.24726312,0.00026082,2]
[357502794,1744092649463,-264.5171213,0.00026082,2]
[357502795,1744092649472,-635.34159413,0.00026083,2]
[357502796,1744092649482,-1511.24548836,0.00026083,2]
[357502797,1744092649493,-740.60803004,0.00026182,2]
[357502798,1744092649506,-279.99,0.00026449,13]
[357502799,1744092649516,-837.41003169,0.00027,3]
[357502800,1744092649526,-837.41003169,0.00027,3]
[357502801,1744092649536,-200.0,0.00027397,2]
[357502802,1744092649547,-501.49010657,0.00027397,2]
[357502803,1744092649557,-167.593456,0.00027397,120]
[357502804,1744092649568,-500.0,0.00027397,5]
[357502805,1744092649580,-2000.0,0.00027703,4]
[357502806,1744092649591,-160.0,0.00028,3]
[357502807,1744092649601,-200.0,0.00028767,2]
[357502808,1744092649611,-150.193,0.00029523,2]
[357502809,1744092649620,-150.584,0.00029523,2]
[357502810,1744092649630,-801.802,0.00029523,2]
[357502811,1744092649640,-547.401,0.00029523,2]
[357502812,1744092649649,-2253.0,0.00029523,2]
[357502813,1744092649659,-300.0,0.00029523,2]
[357502814,1744092649668,-91221.12231111,0.0003,2]
[357502815,1744092649678,-153.70153521,0.0003,10]
[357502816,1744092649688,-1514.39431799,0.0003,7]
[357502817,1744092649698,-179.91004498,0.00030001,4]
[357502818,1744092649708,-200.0,0.00030136,2]
[357502819,1744092649718,-506.5078414,0.00030352,5]
[357502820,1744092649728,-1000.0,0.00030352,2]
[357502821,1744092649738,-1098.35081077,0.00030352,5]
[357502822,1744092649748,-804.70270583,0.00030352,5]
[357502823,1744092649758,-501.54608834,0.00030352,5]
[357502824,1744092649768,-1000.0,0.00030352,5]
[357502825,1744092649777,-705.27607404,0.00030352,5]
[357502826,1744092649787,-501.99160187,0.00030352,5]
[357502827,1744092649796,-501.55578929,0.00030352,5]
[357502828,1744092649806,-390.1040898,0.00030352,5]
[357502829,1744092649815,-1000.0,0.00030352,5]
[357502830,1744092649825,-604.60346185,0.00030352,5]
[357502831,1744092649834,-2000.0,0.00030778,4]
[357502832,1744092649844,-2952.77459405,0.00031458,2]
[357502833,1744092649854,-167.49456348,0.00031506,2]
[357502834,1744092649864,-1595.69150474,0.000318,7]
[357502835,1744092649874,-160.0,0.00032374,3]
[357502836,1744092649884,-150.0,0.00032523,2]
[357502837,1744092649894,-543.0,0.00032523,2]
[357502838,1744092649905,-907.424,0.00032523,2]
[357502839,1744092649915,-1000.0,0.00032877,5]
[357502840,1744092649925,-160.0,0.00033249,4]
[357502841,1744092649935,-6579.26025965,0.00033453,4]
[357502842,1744092649945,-2200.0,0.00033517,2]
[357502843,1744092649955,-500.0,0.00033517,7]
[357502844,1744092649965,-2000.0,0.00033852,4]
[357502845,1744092649977,-160.0,0.00034124,5]
[357502846,1744092649987,-627.0,0.00034523,30]
[357502847,1744092649996,-1284.8205332,0.00034919,4]
[357502848,1744092650006,-160.0,0.00034999,6]
[357502849,1744092650017,-150.0,0.000351,2]
[357502850,1744092650027,-1500.0,0.00035271,5]
[357502851,1744092650037,-1500.0,0.00035271,2]
[357502852,1744092650048,-507.21265702,0.00035271,5]
[357502853,1744092650058,-1005.83580983,0.00035271,5]
[357502854,1744092650068,-1009.8331372,0.00035271,5]
[357502855,1744092650078,-1383.58136447,0.00035371,5]
[357502856,1744092650088,-1500.0,0.00035371,5]
[357502857,1744092650098,-1500.0,0.00035371,5]
[357502858,1744092650108,-1500.0,0.00035371,5]
[357502859,1744092650118,-1500.0,0.00035371,5]
[357502860,1744092650128,-1500.0,0.00035371,5]
[357502861,1744092650139,-1500.0,0.00035371,5]
[357502862,1744092650149,-150.0,0.00035523,2]
[357502863,1744092650159,-543.0,0.00035523,2]
[357502864,1744092650169,-2500.0,0.00035615,60]
[357502865,1744092650179,-500.0,0.00035616,7]
[357502866,1744092650190,-500.0,0.00035616,7]
[357502867,1744092650200,-500.0,0.00035616,7]
[357502868,1744092650211,-500.0,0.00035616,7]
[357502869,1744092650419,-500.0,0.00035616,7]
[357502870,1744092650430,-500.29432207,0.00035616,7]
[357502871,1744092650440,-500.0,0.00035616,7]
[357502872,1744092650450,-500.0,0.00035616,7]
[357502873,1744092650460,-500.0,0.00035616,7]
[357502874,1744092650470,-500.0,0.00035616,7]
[357502875,1744092650480,-500.0,0.00035616,7]
[357502876,1744092650492,-500.0,0.00035616,7]
[357502877,1744092650503,-500.0,0.00035616,7]
[357502878,1744092650515,-500.0,0.00035616,7]
[357502879,1744092650524,-500.0,0.00035616,7]
[357502880,1744092650536,-500.0,0.00035616,7]
[357502881,1744092650546,-500.0,0.00035616,7]
[357502882,1744092650556,-500.0,0.00035616,7]
[357502883,1744092650566,-500.0,0.00035673,5]
[357502884,1744092650577,-150.16802362,0.00035673,5]
[357502885,1744092650587,-500.0,0.00035673,5]
[357502886,1744092650596,-151.3115747,0.00035673,2]
[357502887,1744092650607,-150.0,0.00035673,5]
[357502888,1744092650616,-160.0,0.00035699,10]
[357502889,1744092650626,-319766.01,0.000357,30]
[357502890,1744092650635,-1667.24,0.000357,7]
[357502891,1744092650645,-500.0,0.000357,13]
[357502892,1744092650655,-151.0,0.000357,14]
[357502893,1744092650665,-151.0,0.000357,14]
[357502894,1744092650675,-151.365235,0.000357,14]
[357502895,1744092650684,-151.0,0.000357,14]
[357502896,1744092650694,-151.0,0.000357,14]
[357502897,1744092650703,-151.0,0.000357,14]
[357502898,1744092650713,-151.0,0.000357,14]
[357502899,1744092650724,-205.096391,0.000357,14]
[357502900,1744092650733,-151.0,0.000357,14]
[357502901,1744092650743,-205.096391,0.000357,14]
[357502902,1744092650752,-389.941933,0.000357,14]
[357502903,1744092650762,-151.0,0.000357,14]
[357502904,1744092650772,-151.0,0.000357,14]
[357502905,1744092650782,-165.514806,0.000357,14]
[357502906,1744092650792,-151.0,0.000357,2]
[357502907,1744092650802,-151.0,0.000357,14]
[357502908,1744092650811,-151.0,0.000357,2]
[357502909,1744092650821,-173.01005,0.000357,14]
[357502910,1744092650831,-498.689573,0.000357,14]
[357502911,1744092650840,-498.689573,0.000357,14]
[357502912,1744092650850,-239.067142,0.000357,14]
[357502913,1744092650859,-419.46366559,0.000357,7]
[357502914,1744092650869,-837.41003169,0.000357,7]
[357502915,1744092650879,-158.860118,0.000357,14]
[357502916,1744092650889,-226.152958,0.000357,14]